bitfinex-derivatives/quotes_SOLF0:USTF0_20250124
["timestamp","ask_amount","ask_price","bid_price","bid_amount"]
[1737754983809,3.8674,258.56,258.45,3.8689]
[1737754984208,3.8674,258.56,258.48,0.02905749]
[1737754984710,14.97477679,258.57,258.48,0.02905749]
[1737754985111,3.8676,258.55,258.48,0.02905749]
[1737754985305,14.97477679,258.52,258.48,0.02905749]
[1737754985612,14.97477679,258.57,258.3,14.97477679]
[1737754985909,14.97477679,258.57,258.35,14.97477679]
[1737754986109,14.97477679,258.57,258.41,0.02894606]
[1737754986309,14.97477679,258.57,258.36,7.987]
[1737754986510,14.97477679,258.57,258.46,0.02685218]
[1737754986906,18.84197679,258.57,258.46,3.89555218]
[1737754987311,18.84197679,258.57,258.46,0.02685218]
[1737754987605,14.97477679,258.57,258.46,0.02685218]
[1737754987811,14.97477679,258.62,258.46,0.02685218]
[1737754988009,14.97477679,258.62,258.37,2.5383]
[1737754988209,3.8668,258.6,258.51,0.02615719]
[1737754988803,3.8669,258.59,258.51,0.02615719]
[1737754989305,3.8679,258.52,258.51,0.02615719]
[1737754989608,14.97477679,258.57,258.49,0.02965874]
[1737754989809,3.8674,258.56,258.43,3.8693]
[1737754990011,14.97477679,258.57,258.5,0.02567798]
[1737754990309,14.97477679,258.57,258.37,2.5383]
[1737754990708,18.84207679,258.57,258.47,3.8686]
[1737754990908,14.97477679,258.57,258.47,3.8686]
[1737754991108,14.97477679,258.57,258.49,0.0280436]
[1737754991409,3.8675,258.55,258.49,0.0280436]
[1737754992002,14.97477679,258.57,258.49,0.0280436]
[1737754992812,3.8678,258.54,258.49,0.0280436]
[1737754994315,14.97477679,258.57,258.49,0.0280436]
[1737754995015,14.97477679,258.52,258.49,0.0280436]
[1737754995314,3.8689,258.46,258.37,2.5383]
[1737754996216,0.02588613,258.44,258.39,3.89630503]
[1737754997113,0.02588613,258.44,258.39,0.02650503]
[1737754997517,14.97477679,258.62,258.39,15.00128182]
[1737754997717,3.8668,258.6,258.51,3.868]
[1737754998316,3.866,258.66,258.44,14.97477679]
[1737754998515,14.97477679,258.7,258.47,0.02819395]
[1737754998716,14.97477679,258.7,258.44,14.97477679]
[1737754999213,14.97477679,258.7,258.56,0.02587493]
[1737755000120,3.866,258.65,258.56,0.02587493]
[1737755000315,14.97477679,258.7,258.56,0.02587493]
[1737755000619,3.8666,258.61,258.56,0.02587493]
[1737755000813,14.97477679,258.65,258.56,0.02587493]
[1737755001020,14.97477679,258.65,258.44,14.97477679]
[1737755001217,14.97477679,258.65,258.58,0.02719497]
[1737755001418,14.97477679,258.65,258.44,14.97477679]
[1737755001618,14.97477679,258.65,258.52,0.02964924]
[1737755003118,14.97477679,258.65,258.57,3.8671]
[1737755003321,14.97477679,258.65,258.44,14.97477679]
[1737755003520,14.97477679,258.65,258.58,0.02777807]
[1737755003721,3.8665,258.62,258.44,14.97477679]
[1737755004022,14.97477679,258.65,258.39,14.97477679]
[1737755004217,14.97477679,258.7,258.5,0.02698651]
[1737755004418,14.97477679,258.75,258.49,14.97477679]
[1737755004614,3.865,258.72,258.61,3.8665]
[1737755005019,3.865,258.72,258.64,0.02595629]
[1737755006021,3.8651,258.71,258.64,0.02595629]
[1737755006221,14.97477679,258.75,258.64,0.02595629]
[1737755006514,14.97477679,258.7,258.64,0.02595629]
[1737755006721,3.8658,258.67,258.55,10.382]
[1737755006911,3.8658,258.67,258.64,0.0287401]
[1737755007111,3.8658,258.67,258.55,10.382]
[1737755007112,14.97477679,258.76,258.55,10.382]
[1737755007317,14.97477679,258.81,258.63,0.02690919]
[1737755007619,14.97477679,258.81,258.67,3.8656]
[1737755007813,14.97477679,258.81,258.69,0.0249]
[1737755008012,3.8643,258.76,258.69,0.0249]
[1737755008213,14.97477679,258.81,258.69,0.0249]
[1737755008423,3.8635,258.82,258.73,3.8647]
[1737755008622,3.8635,258.82,258.59,14.97477679]
[1737755008823,3.98974951,258.84,258.75,0.02910048]
[1737755009122,3.8641,258.78,258.77,0.02574421]
[1737755009514,14.97477679,258.81,258.77,0.02574421]
[1737755009515,3.864,258.79,258.77,0.02574421]
[1737755010222,18.83847679,258.81,258.77,0.02574421]
[1737755011425,14.97477679,258.81,258.77,0.02574421]
[1737755011624,14.97477679,258.81,258.66,3.8657]
[1737755011828,14.97477679,258.75,258.55,10.382]
[1737755012727,14.97477679,258.75,258.59,3.8669]
[1737755012927,0.02706316,258.68,258.62,0.02948205]
[1737755015229,0.02706316,258.68,258.63,3.8662]
[1737755015624,0.02706316,258.68,258.62,0.02948205]
[1737755017133,0.02706316,258.68,258.62,3.89578205]
[1737755018334,0.02706316,258.68,258.63,3.8663]
[1737755020137,0.02706316,258.68,258.62,0.02948205]
[1737755020339,0.02706316,258.68,258.64,3.8661]
[1737755022139,0.02706316,258.68,258.63,3.8662]
[1737755022337,0.02706316,258.68,258.62,0.02948205]
[1737755023143,0.02706316,258.68,258.64,3.866]
[1737755023343,0.02706316,258.68,258.62,0.02948205]
[1737755025138,14.97477679,258.83,258.62,0.02948205]
[1737755025342,14.97477679,258.83,258.61,14.97477679]
[1737755025743,3.8634,258.83,258.75,3.8645]
[1737755025945,14.97477679,258.88,258.66,14.97477679]
[1737755026340,14.97477679,258.88,258.74,0.02468367]
[1737755027142,3.863,258.85,258.76,3.8643]
[1737755027338,14.97477679,258.88,258.66,14.97477679]
[1737755027542,14.97477679,258.88,258.78,0.02771121]
[1737755028346,3.8633,258.83,258.78,0.02771121]
[1737755028547,14.97477679,258.88,258.78,0.02771121]
[1737755029546,3.8633,258.83,258.78,0.02771121]
[1737755030045,14.97477679,258.88,258.78,0.02771121]
[1737755030349,14.97477679,258.93,258.78,0.02771121]
[1737755030547,14.97477679,258.93,258.72,10.4136]
[1737755030743,3.862,258.92,258.83,3.89000597]
[1737755031149,14.97477679,258.93,258.83,0.02680597]
[1737755031346,14.97477679,258.98,258.83,0.02680597]
[1737755031549,14.97477679,258.98,258.72,10.4136]
[1737755031848,14.97477679,258.98,258.88,0.02960862]
[1737755032052,3.8615,258.95,258.72,10.4136]
[1737755032247,14.97477679,258.98,258.72,10.4136]
[1737755032448,14.97477679,258.98,258.81,0.02763187]
[1737755032647,14.97477679,258.98,258.77,14.97477679]
[1737755032849,3.8607,259.01,258.93,3.8617]
[1737755033246,14.97477679,259.03,258.94,0.02752521]
[1737755033453,14.97477679,259.03,258.93,3.8617]
[1737755033653,14.97477679,259.03,258.96,0.02461]
[1737755033846,14.97477679,259.03,258.82,14.97477679]
[1737755033847,14.97477679,258.98,258.77,14.97477679]
[1737755034052,3.8614,258.96,258.86,3.8628]
[1737755034354,14.97477679,259.03,258.85,0.02855927]
[1737755034554,14.97477679,259.03,258.95,3.8615]
[1737755034750,14.97477679,259.08,258.91,0.02640588]
[1737755034956,14.97477679,259.08,258.83,14.97477679]
[1737755035249,14.97477679,259.08,258.97,0.02792529]
[1737755035455,3.86,259.05,258.97,0.02792529]
[1737755035754,14.97477679,259.08,258.97,0.02792529]
[1737755035954,14.97477679,259.04,258.97,0.02792529]
[1737755036155,14.97477679,258.99,258.78,14.97477679]
[1737755036555,3.8613,258.97,258.78,14.97477679]
[1737755036751,14.97477679,258.99,258.78,14.97477679]
[1737755037454,0.02692439,258.91,258.86,0.02608525]
[1737755037654,14.97477679,259.03,258.82,14.97477679]
[1737755037856,0.02658839,258.91,258.86,0.02881389]
[1737755038054,3.8612,258.97,258.85,3.8629]
[1737755038252,0.02781294,258.91,258.86,0.0267879]
[1737755038453,14.97477679,259.03,258.82,14.97477679]
[1737755038649,0.02527793,258.91,258.86,0.02934183]
[1737755038858,14.97477679,259.03,258.82,14.97477679]
[1737755039157,0.02783504,258.91,258.86,0.02588642]
[1737755039353,3.8615,258.95,258.84,3.863]
[1737755039551,0.02746895,258.91,258.86,0.02742896]
[1737755041356,0.02746895,258.91,258.89,3.8624]
[1737755041662,3.8609,258.99,258.86,0.02742896]
[1737755041862,14.97477679,258.83,258.58,10.17853921]
[1737755042161,14.97477679,258.7,258.57,132.21818566]
[1737755042361,3.8663,258.63,258.57,132.21818566]
[1737755042563,14.97477679,258.65,258.57,132.21818566]
[1737755042758,14.97477679,258.7,258.57,132.21818566]
[1737755042959,0.02851722,258.64,258.58,0.025118]
[1737755043568,14.97477679,258.8,258.62,3.8663]
[1737755043569,3.8641,258.78,258.62,3.8663]
[1737755044060,3.8643,258.77,258.6,3.8667]
[1737755044457,14.97477679,258.8,258.59,2.4703]
[1737755044660,14.97477679,258.85,258.66,0.02783833]
[1737755044864,14.97477679,258.85,258.61,14.97477679]
[1737755045157,14.97477679,258.75,258.73,0.0278965]
[1737755045369,14.97477679,258.75,258.59,2.4703]
[1737755046063,14.97477679,258.8,258.59,2.4703]
[1737755046458,0.02904899,258.72,258.67,0.02752429]
[1737755047965,0.02904899,258.72,258.7,3.8652]
[1737755049962,14.97477679,258.85,258.76,3.8643]
[1737755050162,14.97477679,258.9,258.67,0.02752429]
[1737755050466,14.97477679,258.9,258.66,14.97477679]
[1737755050659,3.8625,258.89,258.66,14.97477679]
[1737755051168,14.97477679,258.9,258.75,0.02772148]
[1737755051368,3.8619,258.93,258.81,3.8635]
[1737755051868,3.8619,258.93,258.84,0.02497957]
[1737755052263,7.27644207,259.03,258.84,3.88807957]
[1737755052464,2.97644207,259.03,258.84,0.02497957]
[1737755052770,3.8619,258.93,258.84,0.02497957]
[1737755053065,2.97644207,259.03,258.84,0.02497957]
[1737755054365,11.63,259.02,258.84,0.02497957]
[1737755054972,2.97644207,259.03,258.84,0.02497957]
[1737755055471,11.63,259.01,258.84,0.02497957]
[1737755055666,2.97644207,259.03,258.84,0.02497957]
[1737755055873,3.8622,258.91,258.84,0.02497957]
[1737755057269,3.8613,258.97,258.84,0.02497957]
[1737755057572,2.97644207,259.03,258.84,0.02497957]
[1737755059564,14.97477679,259.02,258.84,0.02497957]
[1737755059764,14.97477679,259.02,258.78,7.9252]
[1737755059968,3.8609,258.99,258.9,0.02755323]
[1737755061073,3.8609,258.99,258.9,3.88975323]
[1737755062876,18.83527679,259.02,258.94,3.8616]
[1737755063174,18.83527679,259.02,258.82,14.97477679]
[1737755063678,18.83527679,259.02,258.93,3.8618]
[1737755064076,14.97477679,259.07,258.97,3.8611]
[1737755064571,14.97477679,259.07,258.99,0.02732268]
[1737755064772,3.8599,259.06,258.99,0.02732268]
[1737755065976,3.86,259.05,258.99,0.02732268]
[1737755066177,14.97477679,259.07,258.99,0.02732268]
[1737755066380,14.97477679,259.07,258.88,2.462]
[1737755066678,14.97477679,259.02,258.78,7.9252]
[1737755066873,14.97477679,259.02,258.79,2.6761]
[1737755067275,14.97477679,259.09,258.82,14.97477679]
[1737755067674,0.02893549,258.98,258.93,0.02889461]
[1737755067876,14.97477679,259.09,258.82,14.97477679]
[1737755068075,0.02863197,258.98,258.93,0.0293016]
[1737755068276,14.97477679,259.09,258.87,14.97477679]
[1737755068476,14.97477679,259.14,258.92,14.97477679]
[1737755068677,14.97477679,259.14,258.93,5.3098]
[1737755068873,3.859,259.12,259.03,3.8603]
[1737755069680,3.859,259.12,259.05,0.02677938]
[1737755071079,3.8589,259.13,259.05,0.02677938]
[1737755071280,14.97477679,259.22,259.05,0.02677938]
[1737755071477,14.97477679,259.15,258.93,5.3098]
[1737755071783,14.97477679,259.1,258.93,5.3098]
[1737755071975,14.97477679,259.1,259.01,0.02521039]
[1737755072177,11.62,258.93,258.73,132.21818566]
[1737755072380,14.97477679,258.78,258.73,132.21818566]
[1737755072581,14.97477679,258.78,258.55,10.2533]
[1737755072874,14.97477679,258.74,258.55,10.2533]
[1737755073181,0.02697515,258.67,258.62,0.0273743]
[1737755073380,14.97477679,258.79,258.62,0.0273743]
[1737755073579,14.97477679,258.79,258.55,25.22807679]
[1737755073580,14.97477679,258.69,258.55,10.2533]
[1737755074279,14.97477679,258.74,258.55,10.2533]
[1737755074480,14.97477679,258.74,258.59,0.02853191]
[1737755076583,14.97477679,258.79,258.59,0.02853191]
[1737755076880,14.97477679,258.79,258.66,0.02630109]
[1737755077284,3.8662,258.64,258.44,18.84377679]
[1737755077579,14.97477679,258.62,258.45,7.9294]
[1737755078480,0.02668532,258.56,258.51,0.02849681]
[1737755079373,0.02668532,258.56,258.32,2.5963]
[1737755079574,14.97477679,258.62,258.47,3.8686]
[1737755079875,14.97477679,258.57,258.32,2.5963]
[1737755080277,14.97477679,258.57,258.43,3.8692]
[1737755080474,0.02874785,258.47,258.42,0.02508149]
[1737755080676,14.97477679,258.57,258.32,2.5963]
[1737755080975,0.02616645,258.47,258.42,0.02854833]
[1737755082078,0.02616645,258.47,258.45,3.8689]
[1737755086080,14.97477679,258.62,258.42,0.02854833]
[1737755086278,14.97477679,258.62,258.34,0.71067161]
[1737755086485,14.97477679,258.62,258.41,14.97477679]
[1737755086785,14.97477679,258.62,258.56,3.8673]
[1737755086983,2.5547,258.68,258.41,14.97477679]
[1737755087384,2.5547,258.68,258.59,3.8668]
[1737755087881,0.0257581,258.66,258.61,0.02463579]
[1737755088082,14.97477679,258.7,258.64,3.866]
[1737755088278,0.02588353,258.66,258.64,3.866]
[1737755089883,0.02588353,258.66,258.61,3.8959511]
[1737755090079,0.02588353,258.66,258.61,0.0294511]
[1737755090485,3.8668,258.6,258.49,3.8683]
[1737755090680,3.8668,258.6,258.39,19.94227679]
[1737755090981,14.97477679,258.62,258.39,4.9675]
[1737755090982,3.8671,258.58,258.39,4.9675]
[1737755091184,14.97477679,258.62,258.39,4.9675]
[1737755091379,14.97477679,258.62,258.4,2.578]
[1737755091578,0.0283484,258.53,258.48,0.02752949]
[1737755093090,0.0283484,258.53,258.49,3.8683]
[1737755095696,0.0283484,258.53,258.5,3.8682]
[1737755098199,0.0283484,258.53,258.48,0.02752949]
[1737755098599,14.97477679,258.52,258.48,0.02752949]
[1737755099599,0.0283484,258.53,258.48,0.02752949]
[1737755099893,0.0283484,258.53,258.5,3.8682]
[1737755100600,0.0283484,258.53,258.36,14.96315155]
[1737755100796,14.97477679,258.57,258.33,7.7414]
[1737755101098,14.97477679,258.57,258.37,14.97477679]
[1737755101300,14.97477679,258.57,258.31,22.44327679]
[1737755101600,14.97477679,258.46,258.31,7.4685]
[1737755101795,14.97477679,258.46,258.42,0.02952298]
[1737755101995,14.97477679,258.51,258.31,7.4685]
[1737755102192,14.97477679,258.46,258.41,0.02976269]
[1737755102395,14.97477679,258.46,258.31,7.4685]
[1737755102594,14.97477679,258.46,258.41,0.02938746]
[1737755102798,0.026144,258.42,258.41,0.02938746]
[1737755103501,0.026144,258.42,258.31,7.4685]
[1737755104003,0.026144,258.42,258.31,22.44327679]
[1737755104201,0.026144,258.42,258.41,3.8696]
[1737755104503,0.026144,258.42,258.31,7.4685]
[1737755104698,0.026144,258.42,258.39,0.02453974]
[1737755104902,0.026144,258.42,258.31,7.4685]
[1737755104903,15.00092079,258.42,258.23,2.4784]
[1737755105098,14.97477679,258.42,258.23,2.4784]
[1737755105402,3.87,258.38,258.27,3.8715]
[1737755105602,14.97477679,258.37,258.23,2.4784]
[1737755106004,14.97477679,258.37,258.21,4.933]
[1737755106204,0.0270832,258.33,258.27,0.02574562]
[1737755107895,14.97477679,258.32,258.27,0.02574562]
[1737755108100,14.97477679,258.32,258.12,4.933]
[1737755108300,14.97477679,258.27,258.12,4.933]
[1737755108503,14.97477679,258.32,258.12,4.933]
[1737755109094,14.97477679,258.32,258.22,3.8723]
[1737755109298,0.02938873,258.25,258.12,4.933]
[1737755109497,0.02938873,258.25,258.24,0.02975487]
[1737755109702,0.02938873,258.25,258.23,3.8722]
[1737755111906,0.02938873,258.25,258.22,0.02654005]
[1737755112107,3.8729,258.19,258.09,3.8742]
[1737755112309,14.97477679,258.18,257.99,7.8332]
[1737755112709,3.8732,258.17,257.99,7.8332]
[1737755113006,14.97477679,258.18,257.99,7.8332]
[1737755113206,0.02647764,258.11,258.08,3.8745]
[1737755114008,14.97477679,258.23,258.07,0.02604493]
[1737755114203,14.97477679,258.23,257.99,22.80797679]
[1737755115108,5.3169428,258.18,257.99,22.80797679]
[1737755115304,0.02455279,258.14,258.08,0.02718453]
[1737755115909,0.02455279,258.14,258.1,3.8741]
[1737755116215,0.02455279,258.14,258.08,0.02718453]
[1737755116614,0.02455279,258.14,258.09,3.8743]
[1737755116816,0.02455279,258.14,258.08,0.02718453]
[1737755117513,0.02455279,258.14,258.12,3.8739]
[1737755120717,0.02455279,258.14,258.03,5.90411583]
[1737755120916,0.02455279,258.14,257.99,7.8332]
[1737755121116,0.02455279,258.14,258.05,14.97477679]
[1737755121314,14.97477679,258.31,258.09,14.97477679]
[1737755121514,5.3169428,258.34,258.17,14.97477679]
[1737755121718,14.97477679,258.33,258.05,14.97477679]
[1737755122018,3.871,258.32,258.1,14.97477679]
[1737755122322,14.97477679,258.33,258.1,14.97477679]
[1737755122518,0.02725295,258.24,258.2,3.8727]
[1737755122821,0.02725295,258.24,258.1,14.97477679]
[1737755123018,0.02725295,258.24,258.2,3.8726]
[1737755123219,0.02725295,258.24,258.19,0.02688837]
[1737755128122,3.89945295,258.24,258.19,0.02688837]
[1737755130219,3.8723,258.23,258.19,0.02688837]
[1737755130419,14.97477679,258.23,258.19,0.02688837]
[1737755130625,14.97477679,258.23,258.06,2.4548]
[1737755131020,3.8727,258.2,258.06,2.4548]
[1737755131519,14.97477679,258.23,258.14,3.8735]
[1737755131520,18.84717679,258.23,258.14,3.8735]
[1737755131720,0.02702855,258.16,258.14,3.8735]
[1737755132015,0.02702855,258.16,258.13,3.8737]
[1737755132214,0.02702855,258.16,258.12,0.02804924]
[1737755133320,3.8715,258.29,258.12,0.02804924]
[1737755133522,3.8715,258.29,258.06,2.4548]
[1737755133722,8.9511,258.3,258.21,3.8726]
[1737755133923,5.0798,258.3,258.06,2.4548]
[1737755134423,0.02652254,258.21,258.15,0.025445]
[1737755135126,0.02652254,258.21,258.19,3.8727]
[1737755135515,0.02652254,258.21,258.15,0.025445]
[1737755135718,0.02652254,258.21,258.15,3.898745]
[1737755136023,0.02652254,258.21,258.15,0.025445]
[1737755137127,0.02652254,258.21,258.16,3.8733]
[1737755138925,0.02652254,258.21,258.17,3.8731]
[1737755139427,0.02652254,258.21,258.15,0.025445]
[1737755139428,3.8727,258.2,258.15,0.025445]
[1737755139627,18.84747679,258.2,258.15,0.025445]
[1737755140026,0.02652254,258.21,258.17,3.873]
[1737755140626,0.02652254,258.21,258.18,3.873]
[1737755140829,0.02652254,258.21,258.15,0.025445]
[1737755141433,0.02652254,258.21,258.2,3.8727]
[1737755143228,0.02652254,258.21,258.04,14.97477679]
[1737755143428,5.3169428,258.27,258.04,14.97477679]
[1737755144327,3.8716,258.28,258.04,14.97477679]
[1737755144633,0.02711057,258.18,258.13,0.02940184]
[1737755145529,5.3169428,258.3,258.13,0.02940184]
[1737755145734,5.3169428,258.3,258.14,14.97477679]
[1737755145935,5.3169428,258.3,258.15,7.7751]
[1737755146139,14.97477679,258.27,258.15,7.7751]
[1737755146731,3.89696752,258.24,258.18,0.02643121]
[1737755146934,0.02486752,258.24,258.18,0.02643121]
[1737755147930,0.02486752,258.24,258.22,3.8724]
[1737755148436,5.3169428,258.31,258.22,3.8724]
[1737755149133,5.3169428,258.31,258.15,7.7751]
[1737755149534,5.3169428,258.31,258.0,210.04300551]
[1737755149535,14.97477679,258.27,258.04,14.97477679]
[1737755149738,0.02550936,258.26,258.04,14.97477679]
[1737755149932,0.02710373,258.18,258.13,0.02970393]
[1737755152638,0.02710373,258.18,258.13,3.90340393]
[1737755152838,0.02710373,258.18,258.13,0.02970393]
[1737755154135,3.8732,258.17,258.13,0.02970393]
[1737755155944,14.97477679,258.17,258.03,3.8752]
[1737755156137,14.97477679,258.17,257.94,14.97477679]
[1737755156738,3.8738,258.13,258.04,3.875]
[1737755157040,0.02876381,258.11,258.06,0.02508887]
[1737755157441,3.90286381,258.11,258.06,0.02508887]
[1737755157636,0.02876381,258.11,258.06,0.02508887]
[1737755160442,3.8744,258.09,258.06,0.02508887]
[1737755161249,18.84947679,258.07,258.06,0.02508887]
[1737755161448,14.97477679,258.07,257.91,10.5612]
[1737755162050,3.8755,258.02,257.95,3.8764]
[1737755162251,14.97477679,258.07,257.91,7.9559]
[1737755162450,14.97477679,258.02,257.91,7.9559]
[1737755162647,0.02925209,258.02,257.96,0.02474566]
[1737755163246,15.00402888,258.02,257.96,0.02474566]
[1737755163553,14.97477679,257.97,257.75,7.5047]
[1737755163759,3.8776,257.88,257.75,11.3841]
[1737755163955,14.97477679,257.89,257.75,7.5047]
[1737755164356,3.878,257.85,257.75,7.5047]
[1737755164557,14.97477679,257.96,257.79,0.02785923]
[1737755164849,14.97477679,257.96,257.81,3.8784]
[1737755165054,14.97477679,258.01,257.8,14.97477679]
[1737755165858,0.02854132,257.93,257.88,0.0265414]
[1737755167358,3.877,257.92,257.88,0.0265414]
[1737755167657,0.02854132,257.93,257.88,0.0265414]
[1737755167959,0.02854132,257.93,257.91,3.877]
[1737755168158,14.97477679,258.06,257.89,8.0098]
[1737755168554,14.97477679,258.11,258.0,3.8757]
[1737755168751,14.97477679,258.11,257.89,8.0098]
[1737755169358,0.02879998,258.03,257.97,0.02783368]
[1737755170254,0.02879998,258.03,258.01,3.8755]
[1737755170458,21.22788039,258.15,257.97,0.02783368]
[1737755170660,21.22788039,258.15,257.96,14.97477679]
[1737755170860,14.97477679,258.16,257.96,14.97477679]
[1737755171661,0.02777447,258.09,258.04,3.875]
[1737755171857,0.02777447,258.09,258.03,0.02977628]
[1737755172257,14.97477679,258.21,258.03,0.02977628]
[1737755172467,14.97477679,258.26,258.01,14.97477679]
[1737755172859,14.97477679,258.26,258.08,3.8744]
[1737755173059,14.97477679,258.26,258.09,5.0005]
[1737755173280,0.02727272,258.16,258.11,0.02850974]
[1737755173458,14.97477679,258.26,258.11,0.02850974]
[1737755173659,21.22788039,258.27,258.11,15.00328653]
[1737755173964,14.97477679,258.37,258.11,14.97477679]
[1737755174361,4.95978039,258.41,258.27,14.97477679]
[1737755174568,4.95978039,258.41,258.34,3.8705]
[1737755174765,0.02529795,258.37,258.31,0.02697371]
[1737755178263,14.97477679,258.34,258.31,0.02697371]
[1737755178469,3.8712,258.31,258.14,3.8735]
[1737755179162,3.8713,258.3,258.13,3.8737]
[1737755179368,14.97477679,258.34,258.07,2.4742]
[1737755179561,0.02802294,258.23,258.18,0.02738192]
[1737755179764,3.8714,258.29,258.13,3.8737]
[1737755179963,0.02827889,258.23,258.18,0.02779661]
[1737755181873,3.8725,258.22,258.18,0.02779661]
[1737755185265,3.8729,258.19,258.18,0.02779661]
[1737755185768,24.33449195,258.2,258.18,0.02779661]
[1737755186470,24.33449195,258.2,257.99,2.659]
[1737755186471,0.02827889,258.23,258.07,11.39166309]
[1737755186669,5.366,258.38,258.11,24.33449195]
[1737755186866,5.366,258.38,258.12,10.5663]
[1737755187472,5.366,258.38,257.87,24.33449195]
[1737755187473,24.33449195,258.13,257.87,24.33449195]
[1737755187669,24.33449195,258.13,257.88,8.0685]
[1737755187870,24.33449195,258.13,257.96,3.8763]
[1737755188177,0.02479935,258.03,257.98,0.02680737]
[1737755188977,3.90009935,258.03,257.98,0.02680737]
[1737755189178,0.02479935,258.03,257.98,0.02680737]
[1737755189368,24.3592913,258.03,257.98,0.02680737]
[1737755190076,3.8758,258.0,257.98,0.02680737]
[1737755190879,24.3592913,258.03,257.98,0.02680737]
[1737755191073,0.02479935,258.03,257.98,0.02680737]
[1737755193481,0.02479935,258.03,258.0,3.8756]
[1737755193977,24.33449195,258.13,257.98,0.02680737]
[1737755194175,24.33449195,258.19,257.98,0.02680737]
[1737755194376,24.33449195,258.19,257.95,24.33449195]
[1737755194576,24.33449195,258.19,258.02,3.8754]
[1737755194779,24.33449195,258.14,258.02,3.8754]
[1737755194973,24.33449195,258.19,257.94,24.33449195]
[1737755195182,0.02646351,258.11,258.05,0.02465357]
[1737755195578,0.02646351,258.11,258.08,3.8744]
[1737755197381,0.02646351,258.11,258.05,0.02465357]
[1737755197582,0.02646351,258.11,258.1,3.8742]
[1737755198282,0.02646351,258.11,258.07,3.8746]
[1737755199278,0.02646351,258.11,258.08,3.8745]
[1737755202785,0.02646351,258.11,258.05,0.02465357]
[1737755203589,14.98667469,258.19,258.05,0.02465357]
[1737755203776,14.98667469,258.24,258.05,0.02465357]
[1737755203981,14.98667469,258.24,258.01,14.98667469]
[1737755204281,14.98667469,258.24,258.16,3.8733]
[1737755204480,14.98667469,258.24,258.01,14.98667469]
[1737755204685,0.0264779,258.23,258.17,0.02627903]
[1737755204886,3.8714,258.29,258.18,3.8729]
[1737755205188,0.02844452,258.23,258.18,3.8729]
[1737755205885,0.02844452,258.23,258.17,0.02951894]
[1737755207387,0.02844452,258.23,258.18,3.8729]
[1737755207681,0.02844452,258.23,258.17,0.02951894]
[1737755207986,0.02844452,258.23,258.06,10.05682002]
[1737755208182,2.5967,258.34,258.01,272.2512]
[1737755208391,2.5967,258.34,258.06,14.98667469]
[1737755209083,14.98667469,258.2,258.01,14.98667469]
[1737755209289,14.98667469,258.14,257.92,192.0]
[1737755209489,14.98667469,258.09,258.08,0.02876107]
[1737755209690,0.02857192,258.08,257.92,192.0]
[1737755209890,0.02857192,258.08,258.06,0.02976874]
[1737755210085,0.02857192,258.08,257.92,192.0]
[1737755210284,0.02857192,258.08,258.04,0.02548402]
[1737755212092,0.02857192,258.08,257.79,303.37405997]
[1737755212292,14.98667469,258.03,257.86,7.773]
[1737755213295,0.02671696,257.97,257.92,0.029401]
[1737755215987,0.02671696,257.97,257.94,3.8765]
[1737755216186,0.02671696,257.97,257.92,0.029401]
[1737755216988,0.02671696,257.97,257.95,3.8764]
[1737755217492,17.64047469,258.15,258.06,3.8748]
[1737755218096,17.64047469,258.15,258.02,3.8753]
[1737755218395,14.98667469,258.1,257.93,2.6761]
[1737755218597,14.98667469,258.1,258.06,0.02773755]
[1737755218787,14.98667469,258.1,257.86,192.0]
[1737755218993,14.98667469,258.05,257.86,192.0]
[1737755219192,14.98667469,258.05,257.95,0.02550075]
[1737755219392,0.02478425,257.98,257.95,0.02550075]
[1737755224200,14.98667469,258.1,257.95,0.02550075]
[1737755224402,2.6538,258.15,257.89,14.98667469]
[1737755225512,0.02877023,258.05,257.99,0.02894458]
[1737755225708,0.02877023,258.05,257.89,14.98667469]
[1737755225912,2.6538,258.15,257.99,0.0276591]
[1737755226113,0.02445857,258.0,257.99,3.8759]
[1737755226314,3.8739,258.12,258.04,0.02651437]
[1737755226515,3.8739,258.12,257.89,14.98667469]
[1737755226814,0.02958359,258.11,258.05,0.0245329]
[1737755227014,3.8739,258.12,258.02,3.8754]
[1737755227209,0.0285622,258.11,258.05,0.02457801]
[1737755227414,2.6538,258.15,257.87,2.45]
[1737755227415,14.98667469,258.07,257.94,3.8765]
[1737755227615,14.98667469,258.07,257.87,2.45]
[1737755227816,3.8763,257.97,257.87,6.3276]
[1737755228406,3.8763,257.97,257.89,0.02583455]
[1737755228714,0.02641676,257.95,257.89,0.02583455]
[1737755230412,0.02641676,257.95,257.89,3.90323455]
[1737755231414,0.02641676,257.95,257.89,0.02583455]